[Event "Early-Titled-Tuesday-Blitz-October-17-2023"]
[Site "Chess.com"]
[Date "2023.10.17"]
[Round "10"]
[White "wonderfultime"]
[Black "chessfatbear"]
[Result "1/2-1/2"]
[WhiteElo "2973"]
[BlackElo "2816"]
[TimeControl "180+1"]
[EndTime "10:00:06 PDT"]
[Termination "Game drawn by repetition"]

1. d4 {[%clk 0:02:50.4]} 1... d5 {[%clk 0:02:58.8]} 2. Nf3 {[%clk 0:02:50.8]}
2... Nf6 {[%clk 0:02:58.8]} 3. Bf4 {[%clk 0:02:51.5]} 3... Bf5 {[%clk 0:02:58]}
4. c4 {[%clk 0:02:49.6]} 4... e6 {[%clk 0:02:55.8]} 5. Nc3 {[%clk 0:02:49.8]}
5... c6 {[%clk 0:02:27.5]} 6. Qb3 {[%clk 0:02:43.9]} 6... Qc8 {[%clk 0:02:27]}
7. e3 {[%clk 0:02:43.2]} 7... Be7 {[%clk 0:02:25.9]} 8. Rc1 {[%clk 0:02:42.7]}
8... O-O {[%clk 0:02:21.3]} 9. Be2 {[%clk 0:02:43]} 9... Nbd7 {[%clk 0:02:20.2]}
10. h3 {[%clk 0:02:41.4]} 10... Ne4 {[%clk 0:02:19]} 11. O-O {[%clk 0:02:24.5]}
11... Ndf6 {[%clk 0:02:17.1]} 12. Rfd1 {[%clk 0:02:19.8]} 12... h6 {[%clk
0:02:15.4]} 13. Ne5 {[%clk 0:02:12.7]} 13... Nxc3 {[%clk 0:02:08.3]} 14. Rxc3
{[%clk 0:02:10.3]} 14... Ne4 {[%clk 0:02:04.3]} 15. Rcc1 {[%clk 0:02:10.8]}
15... Bh4 {[%clk 0:02:02.7]} 16. Nd3 {[%clk 0:01:52.6]} 16... Bg5 {[%clk
0:01:53.4]} 17. Bf1 {[%clk 0:01:46.2]} 17... Bxf4 {[%clk 0:01:50.5]} 18. Nxf4
{[%clk 0:01:47.1]} 18... Qd7 {[%clk 0:01:50.5]} 19. Bd3 {[%clk 0:01:41.6]} 19...
Nd6 {[%clk 0:01:49.5]} 20. Bxf5 {[%clk 0:01:34.8]} 20... Nxf5 {[%clk 0:01:50.4]}
21. Qc2 {[%clk 0:01:34]} 21... Nd6 {[%clk 0:01:40]} 22. b3 {[%clk 0:01:34.3]}
22... Rfe8 {[%clk 0:01:39.8]} 23. Nd3 {[%clk 0:01:34.5]} 23... Qe7 {[%clk
0:01:39.3]} 24. Qe2 {[%clk 0:01:32.2]} 24... Ne4 {[%clk 0:01:38.8]} 25. Rc2
{[%clk 0:01:24.9]} 25... Rad8 {[%clk 0:01:38.9]} 26. b4 {[%clk 0:01:20.7]} 26...
Nd6 {[%clk 0:01:37]} 27. c5 {[%clk 0:01:07]} 27... Nc4 {[%clk 0:01:37.1]} 28.
Ne5 {[%clk 0:01:05]} 28... Nxe5 {[%clk 0:01:29.7]} 29. dxe5 {[%clk 0:01:05.9]}
29... f6 {[%clk 0:01:29.5]} 30. exf6 {[%clk 0:01:05.7]} 30... Qxf6 {[%clk
0:01:30.4]} 31. e4 {[%clk 0:01:02]} 31... Rf8 {[%clk 0:01:28.8]} 32. b5 {[%clk
0:00:46.7]} 32... dxe4 {[%clk 0:01:10.8]} 33. Rxd8 {[%clk 0:00:43.5]} 33... Rxd8
{[%clk 0:00:55.6]} 34. Qxe4 {[%clk 0:00:43.8]} 34... Rd5 {[%clk 0:00:53]} 35.
bxc6 {[%clk 0:00:38.9]} 35... bxc6 {[%clk 0:00:53.9]} 36. g3 {[%clk 0:00:36.2]}
36... Qf5 {[%clk 0:00:51.3]} 37. Qxf5 {[%clk 0:00:24.3]} 37... exf5 {[%clk
0:00:52.2]} 38. Rc4 {[%clk 0:00:24.6]} 38... Kf7 {[%clk 0:00:52.3]} 39. Ra4
{[%clk 0:00:24.6]} 39... Rxc5 {[%clk 0:00:48.2]} 40. Rxa7+ {[%clk 0:00:25]}
40... Kf6 {[%clk 0:00:48.9]} 41. a4 {[%clk 0:00:24.9]} 41... Rc2 {[%clk
0:00:42.7]} 42. a5 {[%clk 0:00:24.7]} 42... Ra2 {[%clk 0:00:42.9]} 43. Kg2
{[%clk 0:00:22.7]} 43... Ra3 {[%clk 0:00:41.8]} 44. Kf1 {[%clk 0:00:19.3]} 44...
Ra2 {[%clk 0:00:41.6]} 45. a6 {[%clk 0:00:19]} 45... c5 {[%clk 0:00:41.5]} 46.
Ra8 {[%clk 0:00:19.5]} 46... c4 {[%clk 0:00:41.1]} 47. a7 {[%clk 0:00:20]} 47...
Kg6 {[%clk 0:00:40.9]} 48. Ke1 {[%clk 0:00:19.6]} 48... c3 {[%clk 0:00:41.1]}
49. Kd1 {[%clk 0:00:20.3]} 49... c2+ {[%clk 0:00:30]} 50. Kc1 {[%clk 0:00:20.4]}
50... Kh7 {[%clk 0:00:30.4]} 51. f3 {[%clk 0:00:12.8]} 51... Kg6 {[%clk
0:00:29.7]} 52. h4 {[%clk 0:00:13]} 52... h5 {[%clk 0:00:29.8]} 53. Kd2 {[%clk
0:00:13]} 53... Kh7 {[%clk 0:00:29.5]} 54. f4 {[%clk 0:00:08.9]} 54... g6 {[%clk
0:00:28.2]} 55. Kc1 {[%clk 0:00:09.4]} 55... Kg7 {[%clk 0:00:28.4]} 56. Kd2
{[%clk 0:00:10]} 56... Kh7 {[%clk 0:00:29]} 57. Kc1 {[%clk 0:00:06.8]} 57... Kg7
{[%clk 0:00:29.3]} 58. Kd2 {[%clk 0:00:06.8]} 58... Kh7 {[%clk 0:00:29.8]}
1/2-1/2

[Event "Early-Titled-Tuesday-Blitz-October-17-2023"]
[Site "Chess.com"]
[Date "2023.10.17"]
[Round "10"]
[White "Ramosha"]
[Black "brm72"]
[Result "0-1"]
[WhiteElo "2623"]
[BlackElo "2556"]
[TimeControl "180+1"]
[EndTime "10:00:06 PDT"]
[Termination "brm72 won by checkmate"]

1. e4 {[%clk 0:03:00.8]} 1... c5 {[%clk 0:03:00.2]} 2. Nf3 {[%clk 0:02:59.5]}
2... d6 {[%clk 0:02:59.9]} 3. Bb5+ {[%clk 0:02:59.3]} 3... Nd7 {[%clk
0:02:59.7]} 4. d4 {[%clk 0:02:59.1]} 4... cxd4 {[%clk 0:03:00.6]} 5. Qxd4 {[%clk
0:02:59.7]} 5... a6 {[%clk 0:03:01.1]} 6. Bxd7+ {[%clk 0:03:00.3]} 6... Bxd7
{[%clk 0:03:02]} 7. c4 {[%clk 0:03:00.9]} 7... Nf6 {[%clk 0:03:00.2]} 8. Bg5
{[%clk 0:03:00.7]} 8... e6 {[%clk 0:02:57.2]} 9. Nc3 {[%clk 0:02:58.9]} 9... Bc6
{[%clk 0:02:54.7]} 10. O-O {[%clk 0:02:58.5]} 10... Be7 {[%clk 0:02:52.6]} 11.
Rfe1 {[%clk 0:02:58.7]} 11... O-O {[%clk 0:02:52.3]} 12. Rad1 {[%clk 0:02:58.4]}
12... h6 {[%clk 0:02:49.4]} 13. Bxf6 {[%clk 0:02:58]} 13... Bxf6 {[%clk
0:02:45.8]} 14. Qxd6 {[%clk 0:02:58.1]} 14... Bxc3 {[%clk 0:02:39.9]} 15. bxc3
{[%clk 0:02:56.4]} 15... Qa5 {[%clk 0:02:39.5]} 16. Qb4 {[%clk 0:02:46.4]} 16...
Qxa2 {[%clk 0:02:29.4]} 17. Rd2 {[%clk 0:02:46.6]} 17... Qa4 {[%clk 0:02:28.5]}
18. Ne5 {[%clk 0:02:23.6]} 18... Rfd8 {[%clk 0:02:23.7]} 19. Rb2 {[%clk
0:02:19.7]} 19... Rd1 {[%clk 0:02:13.5]} 20. Rb1 {[%clk 0:02:09]} 20... Rxb1
{[%clk 0:02:00.9]} 21. Qxb1 {[%clk 0:02:06.4]} 21... Rd8 {[%clk 0:01:51]} 22. f3
{[%clk 0:02:02.2]} 22... Rd2 {[%clk 0:01:46.6]} 23. h4 {[%clk 0:01:38.1]} 23...
Qa3 {[%clk 0:01:42]} 24. Nxc6 {[%clk 0:00:40.7]} 24... bxc6 {[%clk 0:01:40.9]}
25. Qb8+ {[%clk 0:00:39.1]} 25... Kh7 {[%clk 0:01:39.7]} 26. Qf4 {[%clk
0:00:35.9]} 26... Qb2 {[%clk 0:01:33.9]} 27. Qg3 {[%clk 0:00:28.6]} 27... Qxc3
{[%clk 0:01:33]} 28. Rb1 {[%clk 0:00:28.5]} 28... a5 {[%clk 0:01:14.9]} 29. Rb7
{[%clk 0:00:26.4]} 29... Rd1+ {[%clk 0:01:13]} 30. Kh2 {[%clk 0:00:25.3]} 30...
Qa1 {[%clk 0:00:55.7]} 31. Qf2 {[%clk 0:00:07]} 31... Rh1+ {[%clk 0:00:51.9]}
32. Kg3 {[%clk 0:00:07.4]} 32... Qe5+ {[%clk 0:00:51.3]} 33. f4 {[%clk
0:00:07.7]} 33... Qxe4 {[%clk 0:00:50]} 34. Qf3 {[%clk 0:00:05.8]} 34... Qg6+
{[%clk 0:00:44.8]} 35. Kf2 {[%clk 0:00:04.7]} 35... Rxh4 {[%clk 0:00:42.5]} 36.
Ra7 {[%clk 0:00:03.8]} 36... Qf6 {[%clk 0:00:40.4]} 37. Kg3 {[%clk 0:00:03.6]}
37... g5 {[%clk 0:00:30.3]} 38. fxg5 {[%clk 0:00:02.5]} 38... Qxg5+ {[%clk
0:00:28.4]} 39. Kf2 {[%clk 0:00:02.4]} 39... Qc5+ {[%clk 0:00:26.9]} 40. Kg3
{[%clk 0:00:02.5]} 40... Qxa7 {[%clk 0:00:23.9]} 41. Kxh4 {[%clk 0:00:03.4]}
41... Qd4+ {[%clk 0:00:22.6]} 42. Kh3 {[%clk 0:00:02]} 42... Kg7 {[%clk
0:00:20.8]} 43. Qxc6 {[%clk 0:00:01.8]} 43... Qd3+ {[%clk 0:00:18.3]} 44. g3
{[%clk 0:00:02.6]} 44... Qf1+ {[%clk 0:00:17.9]} 45. Kg4 {[%clk 0:00:02.8]}
45... Qf5+ {[%clk 0:00:17.8]} 46. Kh4 {[%clk 0:00:03.3]} 46... h5 {[%clk
0:00:14.9]} 47. g4 {[%clk 0:00:01.8]} 47... Qxg4# {[%clk 0:00:15.1]} 0-1

[Event "Early-Titled-Tuesday-Blitz-October-17-2023"]
[Site "Chess.com"]
[Date "2023.10.17"]
[Round "10"]
[White "K_A_S_T_O_R"]
[Black "mishanick"]
[Result "1/2-1/2"]
[WhiteElo "2878"]
[BlackElo "3020"]
[TimeControl "180+1"]
[EndTime "10:00:09 PDT"]
[Termination "Game drawn by repetition"]

1. e4 {[%clk 0:03:00.9]} 1... e5 {[%clk 0:03:00.2]} 2. Nf3 {[%clk 0:03:01.2]}
2... d6 {[%clk 0:03:00.6]} 3. d4 {[%clk 0:02:59.2]} 3... Nf6 {[%clk 0:02:59.5]}
4. dxe5 {[%clk 0:02:58.8]} 4... Nxe4 {[%clk 0:02:59.7]} 5. Qd5 {[%clk
0:02:59.2]} 5... Nc5 {[%clk 0:02:58.2]} 6. Bg5 {[%clk 0:02:57.9]} 6... Qd7
{[%clk 0:02:45]} 7. exd6 {[%clk 0:02:56.3]} 7... Bxd6 {[%clk 0:02:42.6]} 8. Nc3
{[%clk 0:02:55.3]} 8... Qe6+ {[%clk 0:02:31.8]} 9. Be3 {[%clk 0:02:54.4]} 9...
Qxd5 {[%clk 0:02:14.9]} 10. Nxd5 {[%clk 0:02:54.2]} 10... Nba6 {[%clk
0:02:15.5]} 11. O-O-O {[%clk 0:02:47.3]} 11... Be6 {[%clk 0:02:15.2]} 12. Ng5
{[%clk 0:02:40.6]} 12... Bg4 {[%clk 0:01:55.6]} 13. f3 {[%clk 0:02:09.9]} 13...
Bh5 {[%clk 0:01:55.5]} 14. Bf4 {[%clk 0:01:56.8]} 14... O-O-O {[%clk 0:01:44.8]}
15. Bxa6 {[%clk 0:01:49]} 15... Nxa6 {[%clk 0:01:42.9]} 16. Bxd6 {[%clk
0:01:48.2]} 16... Rxd6 {[%clk 0:01:43.8]} 17. Ne7+ {[%clk 0:01:43.4]} 17... Kb8
{[%clk 0:01:40.5]} 18. Rxd6 {[%clk 0:01:37.8]} 18... cxd6 {[%clk 0:01:40.5]} 19.
g4 {[%clk 0:01:30.6]} 19... Bg6 {[%clk 0:01:40.2]} 20. Nxg6 {[%clk 0:01:29.5]}
20... fxg6 {[%clk 0:01:40.2]} 21. Re1 {[%clk 0:01:29.9]} 21... h6 {[%clk
0:01:32.6]} 22. Nf7 {[%clk 0:01:06.5]} 22... Rf8 {[%clk 0:01:30.8]} 23. Re7
{[%clk 0:01:05.9]} 23... Nc7 {[%clk 0:01:29.8]} 24. Nxd6 {[%clk 0:01:04]} 24...
Rxf3 {[%clk 0:01:29]} 25. Rxg7 {[%clk 0:01:02]} 25... a6 {[%clk 0:01:29.1]} 26.
Rxg6 {[%clk 0:00:55.8]} 26... Rf1+ {[%clk 0:01:28.9]} 27. Kd2 {[%clk 0:00:55.7]}
27... Rf2+ {[%clk 0:01:29.6]} 28. Kd3 {[%clk 0:00:55.7]} 28... Rxh2 {[%clk
0:01:30.3]} 29. Rg8+ {[%clk 0:00:51.4]} 29... Ka7 {[%clk 0:01:30.1]} 30. Rg7
{[%clk 0:00:52]} 30... Kb8 {[%clk 0:01:17.6]} 31. a4 {[%clk 0:00:46.5]} 31... b6
{[%clk 0:01:14.1]} 32. b4 {[%clk 0:00:44.3]} 32... Rh3+ {[%clk 0:01:04]} 33. Kc4
{[%clk 0:00:43.3]} 33... h5 {[%clk 0:00:53.8]} 34. g5 {[%clk 0:00:29.5]} 34...
Rg3 {[%clk 0:00:49.1]} 35. Nf5 {[%clk 0:00:19.1]} 35... Rg4+ {[%clk 0:00:47.7]}
36. Kb3 {[%clk 0:00:19.7]} 36... h4 {[%clk 0:00:39.8]} 37. g6 {[%clk 0:00:19.2]}
37... h3 {[%clk 0:00:37.3]} 38. Rh7 {[%clk 0:00:16.6]} 38... Rxg6 {[%clk
0:00:34.7]} 39. Rxh3 {[%clk 0:00:16.6]} 39... Rf6 {[%clk 0:00:35]} 40. Rh5
{[%clk 0:00:15.6]} 40... Kb7 {[%clk 0:00:34]} 41. c3 {[%clk 0:00:15.3]} 41...
Kb8 {[%clk 0:00:32.7]} 42. Ne7 {[%clk 0:00:14.9]} 42... Kb7 {[%clk 0:00:31]} 43.
Rh7 {[%clk 0:00:14.3]} 43... Rd6 {[%clk 0:00:30]} 44. Nf5 {[%clk 0:00:10.5]}
44... Re6 {[%clk 0:00:24.5]} 45. Nd4 {[%clk 0:00:10.8]} 45... Rg6 {[%clk
0:00:21]} 46. b5 {[%clk 0:00:11.2]} 46... Kc8 {[%clk 0:00:20.3]} 47. Nc6 {[%clk
0:00:09.9]} 47... Rg3 {[%clk 0:00:09.2]} 48. Rh8+ {[%clk 0:00:09.9]} 48... Kd7
{[%clk 0:00:08.9]} 49. Rd8+ {[%clk 0:00:10.5]} 49... Ke6 {[%clk 0:00:09.3]} 50.
Nd4+ {[%clk 0:00:10]} 50... Ke7 {[%clk 0:00:08.4]} 51. Nc6+ {[%clk 0:00:08.7]}
51... Ke6 {[%clk 0:00:08.3]} 52. Rc8 {[%clk 0:00:08.3]} 52... Kd7 {[%clk
0:00:08.1]} 53. Rd8+ {[%clk 0:00:08.7]} 53... Ke6 {[%clk 0:00:08.5]} 1/2-1/2

[Event "Early-Titled-Tuesday-Blitz-October-17-2023"]
[Site "Chess.com"]
[Date "2023.10.17"]
[Round "10"]
[White "SAInt_666"]
[Black "Bauman_Guy"]
[Result "0-1"]
[WhiteElo "2772"]
[BlackElo "2862"]
[TimeControl "180+1"]
[EndTime "10:00:09 PDT"]
[Termination "Bauman_Guy won by resignation"]

1. e4 {[%clk 0:03:00.9]} 1... c5 {[%clk 0:02:49.4]} 2. Nf3 {[%clk 0:03:00.9]}
2... d6 {[%clk 0:02:49.6]} 3. Bb5+ {[%clk 0:03:01.2]} 3... Nd7 {[%clk
0:02:49.3]} 4. O-O {[%clk 0:03:01]} 4... a6 {[%clk 0:02:49.6]} 5. Bxd7+ {[%clk
0:03:01.3]} 5... Qxd7 {[%clk 0:02:50.1]} 6. c3 {[%clk 0:03:02.2]} 6... Nf6
{[%clk 0:02:49.8]} 7. Re1 {[%clk 0:03:01.5]} 7... e5 {[%clk 0:02:50.1]} 8. d4
{[%clk 0:03:01.3]} 8... Qc7 {[%clk 0:02:50.6]} 9. Bg5 {[%clk 0:02:58.9]} 9...
Be7 {[%clk 0:02:47.2]} 10. h3 {[%clk 0:02:55.8]} 10... O-O {[%clk 0:02:46.4]}
11. Nbd2 {[%clk 0:02:48]} 11... b5 {[%clk 0:02:46.3]} 12. Nf1 {[%clk 0:02:41.8]}
12... Bb7 {[%clk 0:02:45.3]} 13. Ng3 {[%clk 0:02:41.7]} 13... g6 {[%clk
0:02:42]} 14. Qd2 {[%clk 0:02:35.4]} 14... Rfe8 {[%clk 0:02:42.2]} 15. Rad1
{[%clk 0:02:33]} 15... Rad8 {[%clk 0:02:41.2]} 16. Nh2 {[%clk 0:02:26.9]} 16...
a5 {[%clk 0:02:26.1]} 17. d5 {[%clk 0:02:17]} 17... Kh8 {[%clk 0:02:19.5]} 18.
f4 {[%clk 0:02:15.5]} 18... Ng8 {[%clk 0:02:15.9]} 19. Bxe7 {[%clk 0:02:08.7]}
19... Qxe7 {[%clk 0:02:15.1]} 20. f5 {[%clk 0:02:07.4]} 20... Bc8 {[%clk
0:02:13]} 21. Rf1 {[%clk 0:02:06.3]} 21... Qh4 {[%clk 0:02:08.2]} 22. Qf2 {[%clk
0:01:59]} 22... Rf8 {[%clk 0:01:56.4]} 23. Rd3 {[%clk 0:01:57.1]} 23... gxf5
{[%clk 0:01:50.3]} 24. exf5 {[%clk 0:01:44.2]} 24... Nf6 {[%clk 0:01:47.7]} 25.
Nf3 {[%clk 0:01:41.4]} 25... Qh6 {[%clk 0:01:47.5]} 26. Nd2 {[%clk 0:01:29.8]}
26... c4 {[%clk 0:01:35.7]} 27. Rf3 {[%clk 0:01:30.4]} 27... Nxd5 {[%clk
0:01:35]} 28. f6 {[%clk 0:01:31.1]} 28... Rg8 {[%clk 0:01:30.3]} 29. Nde4 {[%clk
0:01:25.7]} 29... Rg6 {[%clk 0:01:28.5]} 30. Qa7 {[%clk 0:01:19.9]} 30... Be6
{[%clk 0:01:24.5]} 31. Nxd6 {[%clk 0:01:00.4]} 31... Qf8 {[%clk 0:01:05.5]} 32.
Nde4 {[%clk 0:00:56.3]} 32... Nf4 {[%clk 0:01:02.8]} 33. Qc7 {[%clk 0:00:55.1]}
33... Rd5 {[%clk 0:00:57.5]} 34. Kh2 {[%clk 0:00:46.6]} 34... h5 {[%clk
0:00:56.7]} 35. R3f2 {[%clk 0:00:44.2]} 35... Qg8 {[%clk 0:00:52.5]} 36. Rxf4
{[%clk 0:00:18.1]} 36... exf4 {[%clk 0:00:53.4]} 37. Rxf4 {[%clk 0:00:19]} 37...
Qd8 {[%clk 0:00:38.7]} 38. Qa7 {[%clk 0:00:16]} 38... Kg8 {[%clk 0:00:32.7]} 39.
Rh4 {[%clk 0:00:12.7]} 39... Re5 {[%clk 0:00:16.1]} 40. Qf2 {[%clk 0:00:12.1]}
40... Qd3 {[%clk 0:00:12.3]} 41. Rxh5 {[%clk 0:00:11.2]} 41... Rxh5 {[%clk
0:00:11.5]} 42. Nxh5 {[%clk 0:00:11.2]} 42... Qxe4 {[%clk 0:00:12]} 43. g4
{[%clk 0:00:06.4]} 43... Bxg4 {[%clk 0:00:10.2]} 44. Ng3 {[%clk 0:00:04.5]}
44... Qf3 {[%clk 0:00:08.3]} 45. Qd4 {[%clk 0:00:03.1]} 45... Qxf6 {[%clk
0:00:07.8]} 46. Qxf6 {[%clk 0:00:01.7]} 46... Rxf6 {[%clk 0:00:08.7]} 47. hxg4
{[%clk 0:00:02.6]} 47... Rf2+ {[%clk 0:00:09.3]} 48. Kh3 {[%clk 0:00:03.4]}
48... Rxb2 {[%clk 0:00:10.2]} 0-1

[Event "Early-Titled-Tuesday-Blitz-October-17-2023"]
[Site "Chess.com"]
[Date "2023.10.17"]
[Round "10"]
[White "venturov"]
[Black "HanSchut"]
[Result "1-0"]
[WhiteElo "2459"]
[BlackElo "2325"]
[TimeControl "180+1"]
[EndTime "10:00:09 PDT"]
[Termination "venturov won on time"]

1. e4 {[%clk 0:03:00.9]} 1... c5 {[%clk 0:02:59.4]} 2. Nf3 {[%clk 0:02:58.5]}
2... d6 {[%clk 0:02:59.6]} 3. d4 {[%clk 0:02:58.7]} 3... cxd4 {[%clk 0:03:00.5]}
4. Nxd4 {[%clk 0:02:59.4]} 4... Nf6 {[%clk 0:03:00.8]} 5. Nc3 {[%clk 0:02:59.9]}
5... a6 {[%clk 0:03:01.4]} 6. h3 {[%clk 0:03:00.3]} 6... e6 {[%clk 0:03:00.8]}
7. g4 {[%clk 0:02:59.9]} 7... d5 {[%clk 0:03:01.5]} 8. exd5 {[%clk 0:02:59.3]}
8... Nxd5 {[%clk 0:03:02.1]} 9. Bg2 {[%clk 0:02:58.8]} 9... Bb4 {[%clk
0:03:02.7]} 10. Ne2 {[%clk 0:02:58.5]} 10... Nc6 {[%clk 0:03:00.8]} 11. O-O
{[%clk 0:02:57.5]} 11... Bxc3 {[%clk 0:03:01.1]} 12. bxc3 {[%clk 0:02:57.5]}
12... h5 {[%clk 0:02:45.8]} 13. c4 {[%clk 0:02:55.6]} 13... Nde7 {[%clk
0:02:39.7]} 14. Bb2 {[%clk 0:02:48.6]} 14... Qxd1 {[%clk 0:02:28.6]} 15. Raxd1
{[%clk 0:02:49.5]} 15... hxg4 {[%clk 0:02:28.7]} 16. hxg4 {[%clk 0:02:48.6]}
16... e5 {[%clk 0:02:27.8]} 17. Bf3 {[%clk 0:02:43.3]} 17... Be6 {[%clk
0:02:25.4]} 18. Ng3 {[%clk 0:02:36.1]} 18... Bxc4 {[%clk 0:02:08.7]} 19. Rfe1
{[%clk 0:02:36.2]} 19... f6 {[%clk 0:02:07.7]} 20. g5 {[%clk 0:02:32.6]} 20...
Kf7 {[%clk 0:01:43.3]} 21. Rd7 {[%clk 0:02:26.3]} 21... Rab8 {[%clk 0:01:19.8]}
22. Ba3 {[%clk 0:02:12.9]} 22... Rhe8 {[%clk 0:01:16.4]} 23. gxf6 {[%clk
0:02:11]} 23... gxf6 {[%clk 0:01:02.8]} 24. Bh5+ {[%clk 0:02:10.9]} 24... Ke6
{[%clk 0:01:03.4]} 25. Bxe8 {[%clk 0:02:11.1]} 25... Rxe8 {[%clk 0:01:03.8]} 26.
Rd6+ {[%clk 0:02:05]} 26... Kf7 {[%clk 0:01:00]} 27. Ne4 {[%clk 0:02:05.3]}
27... Nd4 {[%clk 0:00:41.9]} 28. Rxf6+ {[%clk 0:02:00.2]} 28... Kg7 {[%clk
0:00:42]} 29. c3 {[%clk 0:01:52.3]} 29... Nc2 {[%clk 0:00:37.1]} 30. Bxe7 {[%clk
0:01:29]} 30... Rxe7 {[%clk 0:00:31.6]} 31. Rc1 {[%clk 0:01:20.8]} 31... Bd3
{[%clk 0:00:31.7]} 32. Nc5 {[%clk 0:00:47.3]} 32... Kxf6 {[%clk 0:00:31]} 33.
Nxd3 {[%clk 0:00:47.8]} 33... Na3 {[%clk 0:00:27.4]} 34. Kf1 {[%clk 0:00:46.7]}
34... Nc4 {[%clk 0:00:24.2]} 35. Rb1 {[%clk 0:00:45.3]} 35... b5 {[%clk
0:00:23.9]} 36. Ke2 {[%clk 0:00:43.3]} 36... Rd7 {[%clk 0:00:20.8]} 37. f3
{[%clk 0:00:40.3]} 37... Rh7 {[%clk 0:00:18.4]} 38. Nf2 {[%clk 0:00:39.1]} 38...
Rh2 {[%clk 0:00:17.4]} 39. Rd1 {[%clk 0:00:33.4]} 39... Ke6 {[%clk 0:00:16.8]}
40. Rd8 {[%clk 0:00:33.1]} 40... Nd6 {[%clk 0:00:14.5]} 41. Ra8 {[%clk
0:00:28.6]} 41... Kd5 {[%clk 0:00:08.9]} 42. Rxa6 {[%clk 0:00:27.9]} 42... Nf5
{[%clk 0:00:08.5]} 43. Rg6 {[%clk 0:00:22.8]} 43... Nd6 {[%clk 0:00:03.4]} 44.
Ke3 {[%clk 0:00:20.5]} 44... Nc4+ {[%clk 0:00:03.8]} 45. Ke2 {[%clk 0:00:20.5]}
45... Nd6 {[%clk 0:00:04.3]} 46. Rg4 {[%clk 0:00:18]} 46... e4 {[%clk 0:00:04]}
47. fxe4+ {[%clk 0:00:17.2]} 47... Kc4 {[%clk 0:00:04.7]} 48. e5+ {[%clk
0:00:17.3]} 48... Kxc3 {[%clk 0:00:04.1]} 49. exd6 {[%clk 0:00:18.2]} 49... Rh6
{[%clk 0:00:03.1]} 50. Rg7 {[%clk 0:00:14.4]} 50... Kb2 {[%clk 0:00:02.5]} 51.
d7 {[%clk 0:00:14.8]} 51... Rd6 {[%clk 0:00:02.8]} 52. Ne4 {[%clk 0:00:15.1]}
52... Re6 {[%clk 0:00:03]} 53. Kd3 {[%clk 0:00:15.2]} 53... Rd6+ {[%clk
0:00:03.3]} 54. Nxd6 {[%clk 0:00:14.8]} 1-0

[Event "Early-Titled-Tuesday-Blitz-October-17-2023"]
[Site "Chess.com"]
[Date "2023.10.17"]
[Round "10"]
[White "jaskol95"]
[Black "Byniolus"]
[Result "0-1"]
[WhiteElo "2605"]
[BlackElo "2783"]
[TimeControl "180+1"]
[EndTime "10:00:14 PDT"]
[Termination "Byniolus won by resignation"]

1. e4 {[%clk 0:03:00.9]} 1... d6 {[%clk 0:03:00.3]} 2. d4 {[%clk 0:02:59]} 2...
Nf6 {[%clk 0:03:00.8]} 3. Nc3 {[%clk 0:02:58.4]} 3... c6 {[%clk 0:03:01.4]} 4.
f4 {[%clk 0:02:58.6]} 4... Qb6 {[%clk 0:03:01.8]} 5. Nf3 {[%clk 0:02:57.9]} 5...
Bg4 {[%clk 0:03:02.2]} 6. h3 {[%clk 0:02:48.5]} 6... Bxf3 {[%clk 0:03:01.3]} 7.
Qxf3 {[%clk 0:02:48.5]} 7... e6 {[%clk 0:03:01.7]} 8. Qd3 {[%clk 0:02:34.8]}
8... d5 {[%clk 0:02:58.9]} 9. e5 {[%clk 0:02:34.1]} 9... Nfd7 {[%clk 0:02:59.4]}
10. Be3 {[%clk 0:02:33.3]} 10... c5 {[%clk 0:02:56.2]} 11. Be2 {[%clk
0:02:22.6]} 11... Nc6 {[%clk 0:02:54.5]} 12. dxc5 {[%clk 0:02:18.1]} 12... Bxc5
{[%clk 0:02:55.4]} 13. Bxc5 {[%clk 0:02:11.6]} 13... Nxc5 {[%clk 0:02:56.3]} 14.
Qg3 {[%clk 0:02:09.6]} 14... Qxb2 {[%clk 0:02:36.8]} 15. Rb1 {[%clk 0:01:44.7]}
15... Qxc2 {[%clk 0:02:33.9]} 16. O-O {[%clk 0:01:45.1]} 16... Qg6 {[%clk
0:01:45.9]} 17. Qf2 {[%clk 0:01:42.3]} 17... b6 {[%clk 0:01:30.8]} 18. Nb5
{[%clk 0:01:27.2]} 18... O-O {[%clk 0:01:27.9]} 19. Qe3 {[%clk 0:01:04.1]} 19...
Rad8 {[%clk 0:01:12.9]} 20. Nd6 {[%clk 0:00:54.6]} 20... f5 {[%clk 0:00:59.7]}
21. g4 {[%clk 0:00:46.5]} 21... Ne4 {[%clk 0:00:49.6]} 22. Kh2 {[%clk
0:00:38.6]} 22... Nxd6 {[%clk 0:00:46.6]} 23. exd6 {[%clk 0:00:38.3]} 23... Rxd6
{[%clk 0:00:47.5]} 24. gxf5 {[%clk 0:00:36.4]} 24... Qxf5 {[%clk 0:00:44.2]} 25.
Bd3 {[%clk 0:00:35]} 25... Qf6 {[%clk 0:00:44.1]} 26. Rf2 {[%clk 0:00:26.6]}
26... Nd4 {[%clk 0:00:41.8]} 27. Rg1 {[%clk 0:00:25.2]} 27... g6 {[%clk
0:00:34.1]} 28. Qc1 {[%clk 0:00:14.8]} 28... Rd7 {[%clk 0:00:22.6]} 29. Qa3
{[%clk 0:00:14.2]} 29... Rg7 {[%clk 0:00:16.8]} 30. Qd6 {[%clk 0:00:13.1]} 30...
Nf5 {[%clk 0:00:15.1]} 31. Qa3 {[%clk 0:00:12.9]} 31... Nh4 {[%clk 0:00:14.2]}
32. Rg3 {[%clk 0:00:12.2]} 32... e5 {[%clk 0:00:12.6]} 33. Qb3 {[%clk
0:00:10.5]} 33... Qf7 {[%clk 0:00:07.9]} 34. Rg4 {[%clk 0:00:09.6]} 34... Nf5
{[%clk 0:00:07.3]} 35. fxe5 {[%clk 0:00:09.3]} 35... Kh8 {[%clk 0:00:06.3]} 36.
Rgf4 {[%clk 0:00:09.2]} 36... Qe7 {[%clk 0:00:05.5]} 37. Qb2 {[%clk 0:00:05.7]}
37... Rgf7 {[%clk 0:00:04.7]} 38. e6+ {[%clk 0:00:04.9]} 38... Rf6 {[%clk
0:00:05.1]} 39. Bxf5 {[%clk 0:00:05.4]} 39... gxf5 {[%clk 0:00:02.4]} 40. Rxf5
{[%clk 0:00:06.1]} 40... Kg7 {[%clk 0:00:02.6]} 41. Rg2+ {[%clk 0:00:06.2]}
41... Kh8 {[%clk 0:00:02.4]} 42. Rgf2 {[%clk 0:00:06.8]} 42... Kg7 {[%clk
0:00:03]} 43. Qe5 {[%clk 0:00:07.3]} 43... d4 {[%clk 0:00:02.8]} 44. Rg5+ {[%clk
0:00:06.5]} 44... Kh8 {[%clk 0:00:02.8]} 45. Rgf5 {[%clk 0:00:05.4]} 45... Kg7
{[%clk 0:00:02.9]} 46. Rg2+ {[%clk 0:00:05.1]} 46... Kh8 {[%clk 0:00:03.3]} 47.
Qxd4 {[%clk 0:00:02.9]} 47... Qxe6 {[%clk 0:00:03.1]} 48. Rgf2 {[%clk
0:00:03.2]} 48... Kg7 {[%clk 0:00:03]} 49. Qg4+ {[%clk 0:00:03.6]} 49... Rg6
{[%clk 0:00:02.2]} 50. Rf7+ {[%clk 0:00:02]} 50... Rxf7 {[%clk 0:00:02.1]} 51.
Qxe6 {[%clk 0:00:02.1]} 51... Rxe6 {[%clk 0:00:02.1]} 52. Rg2+ {[%clk
0:00:02.1]} 52... Rg6 {[%clk 0:00:02.7]} 53. Re2 {[%clk 0:00:02.5]} 53... Rgf6
{[%clk 0:00:03.3]} 54. h4 {[%clk 0:00:03.1]} 54... Rf2+ {[%clk 0:00:03.6]} 0-1